[Event "Late-Titled-Tuesday-Blitz-February-20-2024"]
[Site "Chess.com"]
[Date "2024.02.20"]
[Round "3"]
[White "YurasovMat-2012"]
[Black "koncheto"]
[Result "1-0"]
[WhiteElo "2612"]
[BlackElo "2413"]
[TimeControl "180+1"]
[EndTime "14:27:30 PST"]
[Termination "YurasovMat-2012 won by checkmate"]

1. e4 {[%clk 0:03:00.9]} 1... d5 {[%clk 0:02:59.4]} 2. exd5 {[%clk 0:03:00.5]}
2... Qxd5 {[%clk 0:03:00.3]} 3. Nc3 {[%clk 0:02:57.9]} 3... Qa5 {[%clk
0:03:00.9]} 4. Nf3 {[%clk 0:02:56.6]} 4... c6 {[%clk 0:03:01.3]} 5. d4 {[%clk
0:02:56.3]} 5... Nf6 {[%clk 0:03:01.7]} 6. Bd3 {[%clk 0:02:55.8]} 6... Bg4
{[%clk 0:03:01.9]} 7. O-O {[%clk 0:02:55.1]} 7... e6 {[%clk 0:03:02.3]} 8. Bd2
{[%clk 0:02:54]} 8... Qc7 {[%clk 0:03:02]} 9. h3 {[%clk 0:02:53.1]} 9... Bh5
{[%clk 0:03:02.2]} 10. g4 {[%clk 0:02:52.1]} 10... Bg6 {[%clk 0:03:02.5]} 11.
Qe2 {[%clk 0:02:52.2]} 11... Bd6 {[%clk 0:02:59.7]} 12. Ne5 {[%clk 0:02:51.5]}
12... Nbd7 {[%clk 0:02:57.9]} 13. f4 {[%clk 0:02:50.4]} 13... Bxd3 {[%clk
0:02:47.3]} 14. Nxd3 {[%clk 0:02:48.9]} 14... O-O {[%clk 0:02:47.3]} 15. g5
{[%clk 0:02:47.6]} 15... Nd5 {[%clk 0:02:46.4]} 16. Ne4 {[%clk 0:02:48.1]} 16...
c5 {[%clk 0:02:28.1]} 17. Qf2 {[%clk 0:02:24.1]} 17... cxd4 {[%clk 0:01:58.7]}
18. Qxd4 {[%clk 0:02:25]} 18... Rfd8 {[%clk 0:01:43]} 19. c4 {[%clk 0:02:21.8]}
19... Bxf4 {[%clk 0:00:42.5]} 20. cxd5 {[%clk 0:01:55.9]} 20... Bxd2 {[%clk
0:00:32.6]} 21. d6 {[%clk 0:01:55.7]} 21... Qa5 {[%clk 0:00:31.9]} 22. b4 {[%clk
0:01:52.1]} 22... Qb6 {[%clk 0:00:11.9]} 23. Qxb6 {[%clk 0:01:12.8]} 23... Nxb6
{[%clk 0:00:12.1]} 24. Ne5 {[%clk 0:01:12.4]} 24... Bxb4 {[%clk 0:00:07.3]} 25.
Nxf7 {[%clk 0:01:09.6]} 25... Rf8 {[%clk 0:00:05.5]} 26. Ne5 {[%clk 0:01:10]}
26... Rad8 {[%clk 0:00:03.9]} 27. Rxf8+ {[%clk 0:01:06.9]} 27... Kxf8 {[%clk
0:00:04.8]} 28. Rf1+ {[%clk 0:01:05.2]} 28... Kg8 {[%clk 0:00:05.1]} 29. g6
{[%clk 0:01:03.5]} 29... hxg6 {[%clk 0:00:04.7]} 30. d7 {[%clk 0:00:56.2]} 30...
Be7 {[%clk 0:00:03.7]} 31. Rf7 {[%clk 0:00:54.2]} 31... Nxd7 {[%clk 0:00:02.7]}
32. Rxe7 {[%clk 0:00:47.8]} 32... Nxe5 {[%clk 0:00:02.8]} 33. Rxe6 {[%clk
0:00:46.3]} 33... Nf3+ {[%clk 0:00:02.1]} 34. Kf2 {[%clk 0:00:44.5]} 34... Nd2
{[%clk 0:00:02.1]} 35. Ng5 {[%clk 0:00:42.4]} 35... Nc4 {[%clk 0:00:02.2]} 36.
Re7 {[%clk 0:00:39.5]} 36... b5 {[%clk 0:00:02.1]} 37. Rxa7 {[%clk 0:00:36.8]}
37... Ne5 {[%clk 0:00:01.4]} 38. Ne6 {[%clk 0:00:34.9]} 38... Rd7 {[%clk
0:00:02]} 39. Ra8+ {[%clk 0:00:34.3]} 39... Kf7 {[%clk 0:00:02.5]} 40. Ng5+
{[%clk 0:00:33.3]} 40... Kf6 {[%clk 0:00:03.1]} 41. h4 {[%clk 0:00:29]} 41...
Kf5 {[%clk 0:00:03.5]} 42. Ra5 {[%clk 0:00:18.5]} 42... Kg4 {[%clk 0:00:03.5]}
43. Rxb5 {[%clk 0:00:17]} 43... Nd3+ {[%clk 0:00:03.5]} 44. Ke3 {[%clk 0:00:17]}
44... Kxh4 {[%clk 0:00:04.4]} 45. Nf3+ {[%clk 0:00:16.6]} 45... Kg4 {[%clk
0:00:04.2]} 46. Rg5+ {[%clk 0:00:16.5]} 46... Kh3 {[%clk 0:00:04.7]} 47. Rxg6
{[%clk 0:00:16.8]} 47... Nb4 {[%clk 0:00:04]} 48. a3 {[%clk 0:00:15.7]} 48...
Nd5+ {[%clk 0:00:04.3]} 49. Kf2 {[%clk 0:00:15.6]} 49... Nf4 {[%clk 0:00:04.5]}
50. Rg3# {[%clk 0:00:15.5]} 1-0

[Event "Late-Titled-Tuesday-Blitz-February-20-2024"]
[Site "Chess.com"]
[Date "2024.02.20"]
[Round "3"]
[White "czasnaszachy"]
[Black "Mesa_1"]
[Result "1-0"]
[WhiteElo "2409"]
[BlackElo "2550"]
[TimeControl "180+1"]
[EndTime "14:27:30 PST"]
[Termination "czasnaszachy won on time"]

1. e4 {[%clk 0:03:00.9]} 1... c5 {[%clk 0:03:00.6]} 2. Nf3 {[%clk 0:03:00.2]}
2... e6 {[%clk 0:03:01.2]} 3. d4 {[%clk 0:02:56.8]} 3... cxd4 {[%clk 0:03:02.1]}
4. Nxd4 {[%clk 0:02:57.1]} 4... a6 {[%clk 0:03:02.8]} 5. Bd3 {[%clk 0:02:55.4]}
5... Bc5 {[%clk 0:03:02.2]} 6. Nb3 {[%clk 0:02:54.6]} 6... Ba7 {[%clk
0:03:02.1]} 7. Qe2 {[%clk 0:02:53.8]} 7... Ne7 {[%clk 0:03:00.3]} 8. Be3 {[%clk
0:02:53.7]} 8... O-O {[%clk 0:02:58.8]} 9. Bxa7 {[%clk 0:02:53]} 9... Rxa7
{[%clk 0:02:59.7]} 10. N1d2 {[%clk 0:02:52.3]} 10... d5 {[%clk 0:02:56.4]} 11.
O-O {[%clk 0:02:52.1]} 11... Nbc6 {[%clk 0:02:55.1]} 12. Rad1 {[%clk 0:02:41.3]}
12... b5 {[%clk 0:02:50.1]} 13. e5 {[%clk 0:02:35.6]} 13... Ng6 {[%clk
0:02:46.2]} 14. f4 {[%clk 0:02:34.6]} 14... a5 {[%clk 0:02:38.1]} 15. Bxb5
{[%clk 0:02:20]} 15... a4 {[%clk 0:02:36.6]} 16. Nc1 {[%clk 0:01:19.6]} 16...
Nd4 {[%clk 0:01:37.1]} 17. Qd3 {[%clk 0:01:19.3]} 17... Qb6 {[%clk 0:01:36.7]}
18. Qe3 {[%clk 0:01:17.3]} 18... Ne7 {[%clk 0:01:29.1]} 19. Bd3 {[%clk
0:01:12.8]} 19... Qxb2 {[%clk 0:01:19.6]} 20. Kh1 {[%clk 0:01:04.3]} 20... Rc7
{[%clk 0:01:15.7]} 21. Ne2 {[%clk 0:00:50.2]} 21... Nef5 {[%clk 0:01:11.2]} 22.
Qh3 {[%clk 0:00:41.3]} 22... Nxc2 {[%clk 0:00:53.1]} 23. g4 {[%clk 0:00:19.4]}
23... Nh6 {[%clk 0:00:44]} 24. Rb1 {[%clk 0:00:14.7]} 24... Qxa2 {[%clk
0:00:41.6]} 25. Rfc1 {[%clk 0:00:14.7]} 25... Bd7 {[%clk 0:00:22.1]} 26. Ng3
{[%clk 0:00:13]} 26... Rfc8 {[%clk 0:00:20.6]} 27. g5 {[%clk 0:00:13]} 27... Nf5
{[%clk 0:00:16.3]} 28. Nxf5 {[%clk 0:00:13.1]} 28... exf5 {[%clk 0:00:17.2]} 29.
Bxf5 {[%clk 0:00:13.4]} 29... Bxf5 {[%clk 0:00:11]} 30. Qxf5 {[%clk 0:00:14.3]}
30... g6 {[%clk 0:00:11.8]} 31. Qd3 {[%clk 0:00:13.7]} 31... Nb4 {[%clk
0:00:11.2]} 32. Rxc7 {[%clk 0:00:11.8]} 32... Nxd3 {[%clk 0:00:10]} 33. Rxc8+
{[%clk 0:00:12.1]} 33... Kg7 {[%clk 0:00:10.7]} 34. e6 {[%clk 0:00:12.6]} 34...
Qxd2 {[%clk 0:00:10.1]} 35. e7 {[%clk 0:00:11.1]} 35... Nf2+ {[%clk 0:00:06.2]}
36. Kg1 {[%clk 0:00:09.6]} 36... Nh3+ {[%clk 0:00:06.4]} 37. Kh1 {[%clk
0:00:09.2]} 37... Nf2+ {[%clk 0:00:05.6]} 38. Kg1 {[%clk 0:00:09.4]} 38... Nh3+
{[%clk 0:00:06.3]} 39. Kh1 {[%clk 0:00:09.7]} 39... Qe2 {[%clk 0:00:04]} 40.
e8=N+ {[%clk 0:00:08.6]} 40... Kf8 {[%clk 0:00:04.3]} 41. Nf6+ {[%clk
0:00:08.6]} 41... Ke7 {[%clk 0:00:04.1]} 42. Re8+ {[%clk 0:00:08.3]} 42... Kd6
{[%clk 0:00:04.5]} 43. Rxe2 {[%clk 0:00:09]} 1-0

[Event "Late-Titled-Tuesday-Blitz-February-20-2024"]
[Site "Chess.com"]
[Date "2024.02.20"]
[Round "3"]
[White "Balla_Tamas"]
[Black "laziestwin"]
[Result "0-1"]
[WhiteElo "2369"]
[BlackElo "2562"]
[TimeControl "180+1"]
[EndTime "14:27:31 PST"]
[Termination "laziestwin won by resignation"]

1. e4 {[%clk 0:03:00.9]} 1... d6 {[%clk 0:02:52.3]} 2. d4 {[%clk 0:03:00.6]}
2... Nf6 {[%clk 0:02:51.7]} 3. Nc3 {[%clk 0:03:00.2]} 3... g6 {[%clk 0:02:51.6]}
4. f4 {[%clk 0:02:59.4]} 4... Bg7 {[%clk 0:02:51.7]} 5. Nf3 {[%clk 0:03:00.1]}
5... O-O {[%clk 0:02:51.4]} 6. Bd3 {[%clk 0:03:00.2]} 6... Nbd7 {[%clk
0:02:48.1]} 7. e5 {[%clk 0:02:58.1]} 7... dxe5 {[%clk 0:02:43.9]} 8. fxe5 {[%clk
0:02:55.3]} 8... Ne8 {[%clk 0:02:42.9]} 9. O-O {[%clk 0:02:55.1]} 9... Nb6
{[%clk 0:02:40.7]} 10. Ne4 {[%clk 0:02:51.3]} 10... Bg4 {[%clk 0:02:37.2]} 11.
c3 {[%clk 0:02:50.7]} 11... f6 {[%clk 0:02:24.2]} 12. exf6 {[%clk 0:02:27.4]}
12... exf6 {[%clk 0:02:08.2]} 13. h3 {[%clk 0:02:27]} 13... Be6 {[%clk
0:02:04.5]} 14. Bf4 {[%clk 0:02:25.3]} 14... Nd6 {[%clk 0:02:02.5]} 15. Nxd6
{[%clk 0:02:24.8]} 15... cxd6 {[%clk 0:02:03.4]} 16. Re1 {[%clk 0:02:21.3]}
16... Bf7 {[%clk 0:02:02.3]} 17. Kh1 {[%clk 0:02:20.8]} 17... Qd7 {[%clk
0:01:59.4]} 18. Qd2 {[%clk 0:02:16.2]} 18... Rfe8 {[%clk 0:01:57.4]} 19. Bh6
{[%clk 0:02:16.1]} 19... Bd5 {[%clk 0:01:51.9]} 20. Bxg7 {[%clk 0:02:11]} 20...
Kxg7 {[%clk 0:01:52.8]} 21. Qf4 {[%clk 0:02:06.9]} 21... Na4 {[%clk 0:01:38.9]}
22. Be4 {[%clk 0:01:23.3]} 22... Bxe4 {[%clk 0:01:26.8]} 23. Rxe4 {[%clk
0:01:24.2]} 23... Nxb2 {[%clk 0:01:27]} 24. d5 {[%clk 0:01:11.7]} 24... Nd3
{[%clk 0:01:22.4]} 25. Rxe8 {[%clk 0:01:06.9]} 25... Rxe8 {[%clk 0:01:23.3]} 26.
Qd2 {[%clk 0:01:04]} 26... Nc5 {[%clk 0:01:13]} 27. Nd4 {[%clk 0:01:03.4]} 27...
Re5 {[%clk 0:01:07.8]} 28. c4 {[%clk 0:00:59.6]} 28... Qe7 {[%clk 0:01:01.2]}
29. Rf1 {[%clk 0:00:58.1]} 29... Re4 {[%clk 0:00:56.4]} 30. Qc3 {[%clk
0:00:47.9]} 30... Qe5 {[%clk 0:00:53]} 31. Rd1 {[%clk 0:00:44]} 31... b6 {[%clk
0:00:38.1]} 32. Qd2 {[%clk 0:00:43.6]} 32... a5 {[%clk 0:00:32.5]} 33. Nf3
{[%clk 0:00:43.7]} 33... Qf4 {[%clk 0:00:28.9]} 34. Qb2 {[%clk 0:00:41.2]} 34...
Re3 {[%clk 0:00:13.6]} 35. Nd4 {[%clk 0:00:36.1]} 35... Nd3 {[%clk 0:00:09.9]}
36. Qxb6 {[%clk 0:00:14.1]} 36... Nf2+ {[%clk 0:00:09.1]} 37. Kg1 {[%clk
0:00:14.4]} 37... Nxh3+ {[%clk 0:00:06.5]} 38. Kh1 {[%clk 0:00:13.1]} 38... Nf2+
{[%clk 0:00:06.1]} 39. Kg1 {[%clk 0:00:13.7]} 39... Nxd1 {[%clk 0:00:04.1]} 40.
Ne6+ {[%clk 0:00:06.4]} 40... Rxe6 {[%clk 0:00:03.6]} 41. dxe6 {[%clk
0:00:07.3]} 41... Qe3+ {[%clk 0:00:02.9]} 42. Qxe3 {[%clk 0:00:07.7]} 42... Nxe3
{[%clk 0:00:03.5]} 43. Kf2 {[%clk 0:00:08.6]} 43... Nxc4 {[%clk 0:00:03.1]} 44.
Ke2 {[%clk 0:00:08.5]} 44... Kf8 {[%clk 0:00:03.5]} 45. Kd3 {[%clk 0:00:09.4]}
45... Nb6 {[%clk 0:00:03.5]} 46. Kd4 {[%clk 0:00:10]} 46... Ke7 {[%clk 0:00:04]}
47. a4 {[%clk 0:00:10.1]} 47... Kxe6 {[%clk 0:00:04.6]} 48. g4 {[%clk
0:00:10.6]} 48... Nxa4 {[%clk 0:00:05.3]} 49. Kc4 {[%clk 0:00:11.2]} 49... Nc5
{[%clk 0:00:05.3]} 50. Kb5 {[%clk 0:00:12.1]} 50... a4 {[%clk 0:00:05.9]} 0-1

[Event "Late-Titled-Tuesday-Blitz-February-20-2024"]
[Site "Chess.com"]
[Date "2024.02.20"]
[Round "3"]
[White "ThePeacefulPanda"]
[Black "yaguigor"]
[Result "0-1"]
[WhiteElo "2430"]
[BlackElo "2640"]
[TimeControl "180+1"]
[EndTime "14:27:34 PST"]
[Termination "yaguigor won by resignation"]

1. Nf3 {[%clk 0:02:49.9]} 1... d5 {[%clk 0:02:58.7]} 2. g3 {[%clk 0:02:49.5]}
2... c6 {[%clk 0:02:58.1]} 3. Bg2 {[%clk 0:02:49.6]} 3... Bg4 {[%clk 0:02:57.9]}
4. O-O {[%clk 0:02:50.5]} 4... Nd7 {[%clk 0:02:57.3]} 5. d4 {[%clk 0:02:41.2]}
5... Ngf6 {[%clk 0:02:56]} 6. Nbd2 {[%clk 0:02:40.8]} 6... e6 {[%clk 0:02:56.2]}
7. Re1 {[%clk 0:02:41.3]} 7... Be7 {[%clk 0:02:55.7]} 8. e4 {[%clk 0:02:41.8]}
8... O-O {[%clk 0:02:55.7]} 9. e5 {[%clk 0:02:41.4]} 9... Ne8 {[%clk 0:02:55.1]}
10. Nf1 {[%clk 0:02:41]} 10... Nc7 {[%clk 0:02:47.4]} 11. h3 {[%clk 0:02:38.4]}
11... Bf5 {[%clk 0:02:44.1]} 12. g4 {[%clk 0:02:26.8]} 12... Bg6 {[%clk
0:02:42.9]} 13. Ng3 {[%clk 0:02:27.7]} 13... c5 {[%clk 0:02:41]} 14. c3 {[%clk
0:02:28.2]} 14... b5 {[%clk 0:02:39.6]} 15. Be3 {[%clk 0:02:19.7]} 15... b4
{[%clk 0:02:37.4]} 16. Qd2 {[%clk 0:02:19.5]} 16... a5 {[%clk 0:02:33.7]} 17. g5
{[%clk 0:02:01.8]} 17... bxc3 {[%clk 0:02:01.1]} 18. bxc3 {[%clk 0:02:01.1]}
18... Nb6 {[%clk 0:02:00.3]} 19. h4 {[%clk 0:01:49.8]} 19... Nc4 {[%clk
0:02:00.1]} 20. Qe2 {[%clk 0:01:50.4]} 20... Nb5 {[%clk 0:01:41.5]} 21. Rac1
{[%clk 0:01:13.9]} 21... cxd4 {[%clk 0:01:39.4]} 22. Nxd4 {[%clk 0:01:13]} 22...
Nxd4 {[%clk 0:01:37.3]} 23. cxd4 {[%clk 0:01:13.9]} 23... Ba3 {[%clk 0:01:29.2]}
24. Rcd1 {[%clk 0:01:13.3]} 24... Bb4 {[%clk 0:01:26.8]} 25. Rf1 {[%clk
0:01:11.5]} 25... Nxe3 {[%clk 0:01:10.4]} 26. fxe3 {[%clk 0:01:03.4]} 26... Rc8
{[%clk 0:01:07.7]} 27. h5 {[%clk 0:01:03.4]} 27... Bc2 {[%clk 0:01:03.7]} 28.
Rc1 {[%clk 0:01:02.2]} 28... Qxg5 {[%clk 0:00:58.3]} 29. Rxc2 {[%clk 0:00:54.9]}
29... Rxc2 {[%clk 0:00:57]} 30. Qxc2 {[%clk 0:00:54.1]} 30... Qxg3 {[%clk
0:00:57]} 31. Qf2 {[%clk 0:00:51.7]} 31... Qg5 {[%clk 0:00:49.2]} 32. Qf3 {[%clk
0:00:44.5]} 32... f6 {[%clk 0:00:26.5]} 33. exf6 {[%clk 0:00:42.1]} 33... Rxf6
{[%clk 0:00:25.4]} 34. Qe2 {[%clk 0:00:42.3]} 34... Rxf1+ {[%clk 0:00:24.1]} 35.
Kxf1 {[%clk 0:00:43.2]} 35... g6 {[%clk 0:00:20.9]} 36. hxg6 {[%clk 0:00:42.7]}
36... Qxg6 {[%clk 0:00:20.9]} 37. Bh3 {[%clk 0:00:41.3]} 37... Kg7 {[%clk
0:00:19]} 38. Qa6 {[%clk 0:00:33.9]} 38... Qb1+ {[%clk 0:00:16.3]} 39. Kf2
{[%clk 0:00:31.9]} 39... Qxa2+ {[%clk 0:00:16.4]} 40. Kf3 {[%clk 0:00:30.9]}
40... Be1 {[%clk 0:00:13.7]} 41. Bxe6 {[%clk 0:00:11.3]} 41... Qf2+ {[%clk
0:00:12.2]} 42. Kg4 {[%clk 0:00:11.7]} 42... Qg3+ {[%clk 0:00:11.3]} 43. Kf5
{[%clk 0:00:11.9]} 43... Qg6+ {[%clk 0:00:11.1]} 44. Ke5 {[%clk 0:00:12.1]}
44... Qg5+ {[%clk 0:00:10.8]} 45. Bf5 {[%clk 0:00:07.6]} 45... Bg3+ {[%clk
0:00:10.5]} 46. Ke6 {[%clk 0:00:07.8]} 46... Qf6+ {[%clk 0:00:10.2]} 0-1

[Event "Late-Titled-Tuesday-Blitz-February-20-2024"]
[Site "Chess.com"]
[Date "2024.02.20"]
[Round "3"]
[White "dolynachess"]
[Black "janhelmer03"]
[Result "0-1"]
[WhiteElo "2441"]
[BlackElo "2253"]
[TimeControl "180+1"]
[EndTime "14:27:36 PST"]
[Termination "janhelmer03 won by checkmate"]

1. d4 {[%clk 0:02:58.4]} 1... d5 {[%clk 0:03:00]} 2. c4 {[%clk 0:02:58.7]} 2...
c6 {[%clk 0:03:00.6]} 3. Nf3 {[%clk 0:02:58.9]} 3... Nf6 {[%clk 0:03:00.9]} 4.
g3 {[%clk 0:02:59.5]} 4... dxc4 {[%clk 0:02:55.4]} 5. Bg2 {[%clk 0:02:58.4]}
5... b5 {[%clk 0:02:54.9]} 6. O-O {[%clk 0:02:58.3]} 6... Bb7 {[%clk 0:02:55.4]}
7. Nc3 {[%clk 0:02:57.8]} 7... e6 {[%clk 0:02:53.6]} 8. e4 {[%clk 0:02:57.4]}
8... Nbd7 {[%clk 0:02:53.2]} 9. e5 {[%clk 0:02:56.5]} 9... Nd5 {[%clk
0:02:53.6]} 10. Ng5 {[%clk 0:02:56.5]} 10... h6 {[%clk 0:02:44.7]} 11. Qh5
{[%clk 0:02:55.4]} 11... g6 {[%clk 0:02:40]} 12. Qh3 {[%clk 0:02:52.6]} 12...
Bg7 {[%clk 0:02:30.7]} 13. Nxe6 {[%clk 0:02:06.2]} 13... fxe6 {[%clk 0:02:25.8]}
14. Qxe6+ {[%clk 0:02:07.1]} 14... Qe7 {[%clk 0:02:24.7]} 15. Qxg6+ {[%clk
0:02:04.7]} 15... Qf7 {[%clk 0:02:17.4]} 16. Qg4 {[%clk 0:01:44.2]} 16... h5
{[%clk 0:02:01.1]} 17. Qe2 {[%clk 0:01:37.1]} 17... Qg6 {[%clk 0:01:42.1]} 18.
Bxd5 {[%clk 0:01:27.9]} 18... cxd5 {[%clk 0:01:40.3]} 19. Nxb5 {[%clk
0:01:28.5]} 19... O-O {[%clk 0:01:39.7]} 20. f4 {[%clk 0:01:17.4]} 20... Rae8
{[%clk 0:01:37.4]} 21. Bd2 {[%clk 0:01:05.4]} 21... Bc6 {[%clk 0:01:35.4]} 22.
Nxa7 {[%clk 0:01:03.1]} 22... Rf5 {[%clk 0:01:26]} 23. a4 {[%clk 0:00:55.5]}
23... Nf8 {[%clk 0:01:24.2]} 24. Kg2 {[%clk 0:00:45.9]} 24... Bd7 {[%clk
0:01:22.5]} 25. Nb5 {[%clk 0:00:31.2]} 25... Ne6 {[%clk 0:01:13.3]} 26. Be3
{[%clk 0:00:22.5]} 26... Bf8 {[%clk 0:01:06.4]} 27. Nc3 {[%clk 0:00:20.4]} 27...
Nc7 {[%clk 0:00:52.5]} 28. h3 {[%clk 0:00:19.6]} 28... Rf7 {[%clk 0:00:50.9]}
29. g4 {[%clk 0:00:18.6]} 29... hxg4 {[%clk 0:00:50.8]} 30. hxg4 {[%clk
0:00:18.8]} 30... Bxg4 {[%clk 0:00:51.6]} 31. Qe1 {[%clk 0:00:16.1]} 31... Rh7
{[%clk 0:00:45.7]} 32. Rg1 {[%clk 0:00:14.2]} 32... Be7 {[%clk 0:00:41.5]} 33.
Qg3 {[%clk 0:00:13.7]} 33... Bh4 {[%clk 0:00:40.5]} 34. Qxg4 {[%clk 0:00:08.8]}
34... Qxg4+ {[%clk 0:00:39.3]} 35. Kf1 {[%clk 0:00:09.4]} 35... Bg3 {[%clk
0:00:38.2]} 36. Bf2 {[%clk 0:00:09.6]} 36... Qh3+ {[%clk 0:00:31.4]} 37. Ke1
{[%clk 0:00:05.4]} 37... Rg7 {[%clk 0:00:31]} 38. Ne2 {[%clk 0:00:02.2]} 38...
Bxf2+ {[%clk 0:00:29]} 39. Kxf2 {[%clk 0:00:03.1]} 39... Qh2+ {[%clk 0:00:25.8]}
40. Ke3 {[%clk 0:00:02.1]} 40... Rb8 {[%clk 0:00:19.5]} 41. f5 {[%clk
0:00:01.7]} 41... Rb3+ {[%clk 0:00:19]} 42. Kd2 {[%clk 0:00:01]} 42... Rxb2+
{[%clk 0:00:18.8]} 43. Kc3 {[%clk 0:00:01.9]} 43... Rb3+ {[%clk 0:00:18.7]} 44.
Kd2 {[%clk 0:00:01.5]} 44... Rd3+ {[%clk 0:00:16.6]} 45. Ke1 {[%clk 0:00:01]}
45... Rxg1+ {[%clk 0:00:16.3]} 46. Nxg1 {[%clk 0:00:01.9]} 46... Qxg1+ {[%clk
0:00:15.4]} 47. Ke2 {[%clk 0:00:01.2]} 47... Qg2+ {[%clk 0:00:14.6]} 48. Ke1
{[%clk 0:00:01.1]} 48... Qd2+ {[%clk 0:00:13.8]} 49. Kf1 {[%clk 0:00:01.2]}
49... Rf3+ {[%clk 0:00:14.7]} 50. Kg1 {[%clk 0:00:01.4]} 50... Qf2+ {[%clk
0:00:15.6]} 51. Kh1 {[%clk 0:00:01.8]} 51... Rh3# {[%clk 0:00:16.5]} 0-1

[Event "Late-Titled-Tuesday-Blitz-February-20-2024"]
[Site "Chess.com"]
[Date "2024.02.20"]
[Round "3"]
[White "STAYFlow"]
[Black "adiosabu"]
[Result "0-1"]
[WhiteElo "2362"]
[BlackElo "2564"]
[TimeControl "180+1"]
[EndTime "14:27:37 PST"]
[Termination "adiosabu won on time"]

1. e4 {[%clk 0:03:00.9]} 1... c5 {[%clk 0:02:59.3]} 2. Nf3 {[%clk 0:03:00.6]}
2... Nc6 {[%clk 0:02:58.9]} 3. d4 {[%clk 0:03:00.8]} 3... cxd4 {[%clk
0:02:58.7]} 4. Nxd4 {[%clk 0:03:01.4]} 4... e5 {[%clk 0:02:59.4]} 5. Nb5 {[%clk
0:03:01]} 5... a6 {[%clk 0:02:59.7]} 6. Nd6+ {[%clk 0:03:00]} 6... Bxd6 {[%clk
0:02:59.8]} 7. Qxd6 {[%clk 0:03:00.4]} 7... Qe7 {[%clk 0:03:00.7]} 8. Qxe7+
{[%clk 0:02:43]} 8... Ngxe7 {[%clk 0:03:01.6]} 9. Nc3 {[%clk 0:02:39.8]} 9... d5
{[%clk 0:03:01.1]} 10. exd5 {[%clk 0:02:22.9]} 10... Nb4 {[%clk 0:03:00.6]} 11.
Bd3 {[%clk 0:02:22.7]} 11... Bf5 {[%clk 0:03:00.5]} 12. Bxf5 {[%clk 0:01:10.1]}
12... Nxf5 {[%clk 0:02:59.6]} 13. O-O {[%clk 0:01:05.3]} 13... Nxc2 {[%clk
0:02:53.6]} 14. Rb1 {[%clk 0:01:04.1]} 14... O-O {[%clk 0:02:49.6]} 15. Rd1
{[%clk 0:00:56.6]} 15... Rac8 {[%clk 0:02:40.6]} 16. Bd2 {[%clk 0:00:49.2]}
16... Rfd8 {[%clk 0:02:34.1]} 17. Rbc1 {[%clk 0:00:47.4]} 17... Nb4 {[%clk
0:02:23.1]} 18. Be3 {[%clk 0:00:43.8]} 18... Nxe3 {[%clk 0:01:20.7]} 19. fxe3
{[%clk 0:00:44.7]} 19... a5 {[%clk 0:01:00]} 20. Kf2 {[%clk 0:00:20.4]} 20...
Kf8 {[%clk 0:00:58.5]} 21. a3 {[%clk 0:00:18.6]} 21... Na6 {[%clk 0:00:56.6]}
22. e4 {[%clk 0:00:12.1]} 22... Nc5 {[%clk 0:00:55.4]} 23. Ke3 {[%clk
0:00:11.3]} 23... Nb3 {[%clk 0:00:53.9]} 24. Rc2 {[%clk 0:00:10.9]} 24... Rc4
{[%clk 0:00:50.1]} 25. Rf2 {[%clk 0:00:08.3]} 25... f6 {[%clk 0:00:48.8]} 26. g4
{[%clk 0:00:08.2]} 26... h6 {[%clk 0:00:45.8]} 27. h4 {[%clk 0:00:08.6]} 27...
Rdc8 {[%clk 0:00:45.9]} 28. g5 {[%clk 0:00:07.4]} 28... hxg5 {[%clk 0:00:45.3]}
29. hxg5 {[%clk 0:00:08.3]} 29... Ke7 {[%clk 0:00:45.4]} 30. gxf6+ {[%clk
0:00:08.2]} 30... gxf6 {[%clk 0:00:45.9]} 31. Rh1 {[%clk 0:00:08.8]} 31... Rxc3+
{[%clk 0:00:45.7]} 32. bxc3 {[%clk 0:00:08.6]} 32... Rxc3+ {[%clk 0:00:46.3]}
33. Ke2 {[%clk 0:00:08.9]} 33... Nd4+ {[%clk 0:00:44.8]} 34. Kf1 {[%clk
0:00:08.9]} 34... Nf3 {[%clk 0:00:20.6]} 35. Rh7+ {[%clk 0:00:08.9]} 35... Kd6
{[%clk 0:00:20.5]} 36. Rh3 {[%clk 0:00:08.2]} 36... Nd2+ {[%clk 0:00:19.8]} 37.
Kg2 {[%clk 0:00:08.8]} 37... Rxh3 {[%clk 0:00:19.6]} 38. Kxh3 {[%clk 0:00:09.7]}
38... Nxe4 {[%clk 0:00:19.9]} 39. Rb2 {[%clk 0:00:10.1]} 39... Nc5 {[%clk
0:00:19.2]} 40. Kg4 {[%clk 0:00:08.5]} 40... Kxd5 {[%clk 0:00:17.4]} 41. Kf5
{[%clk 0:00:08.9]} 41... e4 {[%clk 0:00:17.4]} 42. Kxf6 {[%clk 0:00:05.3]} 42...
Kd4 {[%clk 0:00:17.8]} 43. Kf5 {[%clk 0:00:05.7]} 43... e3 {[%clk 0:00:17.2]}
44. Rb6 {[%clk 0:00:05.3]} 44... e2 {[%clk 0:00:16.5]} 45. Rb1 {[%clk
0:00:05.5]} 45... Nd3 {[%clk 0:00:16.1]} 46. Ke6 {[%clk 0:00:05.4]} 46... e1=Q+
{[%clk 0:00:13.9]} 47. Rxe1 {[%clk 0:00:05.9]} 47... Nxe1 {[%clk 0:00:14.8]} 48.
Kd6 {[%clk 0:00:06.6]} 48... b5 {[%clk 0:00:14.9]} 49. Kc6 {[%clk 0:00:06.5]}
49... b4 {[%clk 0:00:15.3]} 50. axb4 {[%clk 0:00:07.2]} 50... axb4 {[%clk
0:00:15.7]} 0-1